bitfinex/quotes_SOLUSD_20250118
["timestamp","ask_amount","ask_price","bid_price","bid_amount"]
[1737169344742,1.648,222.7,222.64,20.0]
[1737169345259,1.648,222.7,222.63,20.67187573]
[1737169345260,1.148,222.7,222.63,20.67187573]
[1737169346254,1106.44257703,222.78,222.64,15.7203]
[1737169346562,1106.44257703,222.78,222.65,0.67178828]
[1737169348251,1106.44257703,222.78,222.68,20.0]
[1737169348571,1106.44257703,222.78,222.69,24.76]
[1737169349273,1106.44257703,222.78,222.69,4.76]
[1737169349459,1106.44257703,222.78,222.7,24.4903]
[1737169350257,1106.44257703,222.78,222.7,38.0303]
[1737169350558,1106.44257703,222.78,222.7,24.4903]
[1737169350770,1106.44257703,222.78,222.69,4.76]
[1737169350956,4.4889,222.77,222.69,4.76]
[1737169351154,4.4889,222.77,222.7,20.0]
[1737169351358,4.4889,222.77,222.69,4.76]
[1737169351861,4.4889,222.77,222.7,4.74]
[1737169352374,1106.47257703,222.78,222.7,9.90217578]
[1737169352564,1106.47257703,222.78,222.73,20.0]
[1737169353165,1106.44257703,222.78,222.73,20.0]
[1737169354379,1106.44257703,222.78,222.74,24.4895]
[1737169354876,1106.44257703,222.78,222.74,4.4895]
[1737169357181,1106.44257703,222.78,222.74,24.4895]
[1737169357358,1104.3588124,222.78,222.74,15.7133]
[1737169357558,1104.3588124,222.78,222.77,20.0]
[1737169357753,1104.3588124,222.78,222.74,4.4895]
[1737169357956,1104.3588124,222.78,222.75,4.74]
[1737169358374,1104.3588124,222.78,222.76,4.4891]
[1737169358563,257.50334775,222.78,222.77,20.0]
[1737169358769,255.01834775,222.78,222.77,20.0]
[1737169359259,245.87223326,222.78,222.77,20.0]
[1737169360866,245.87223326,222.78,222.76,4.4891]
[1737169361266,245.87223326,222.78,222.77,20.0]
[1737169362384,245.87223326,222.78,222.77,19.86129898]
[1737169362757,245.87223326,222.78,222.77,24.35019898]
[1737169363786,223.10833326,222.78,222.77,24.35019898]
[1737169364182,223.13833326,222.78,222.77,24.35019898]
[1737169366401,194.80613326,222.78,222.77,37.89019898]
[1737169366584,170.52843326,222.78,222.77,24.35019898]
[1737169367092,170.52843326,222.78,222.77,24.28159898]
[1737169369372,170.52843326,222.78,222.72,4.4899]
[1737169369573,170.52843326,222.78,222.77,4.7]
[1737169370992,172.10703326,222.78,222.75,4.7]
[1737169372070,172.10703326,222.78,222.75,9.1892]
[1737169372486,172.10703326,222.78,222.71,48.44]
[1737169373066,172.10703326,222.78,222.72,4.7]
[1737169373670,176.59573326,222.78,222.72,4.7]
[1737169373972,172.10703326,222.78,222.72,4.7]
[1737169374381,176.59573326,222.78,222.72,4.7]
[1737169374880,172.10703326,222.78,222.72,4.7]
[1737169375084,172.10703326,222.78,222.72,9.1898]
[1737169376179,172.10703326,222.78,222.72,4.7]
[1737169377700,176.59573326,222.78,222.7,0.063]
[1737169377900,176.59573326,222.78,222.66,16.66530175]
[1737169378107,0.84190091,222.77,222.66,16.66530175]
[1737169378683,6.052,222.76,222.66,21.36530175]
[1737169379188,5.33125215,222.75,222.66,21.36530175]
[1737169379386,16.55455215,222.75,222.66,21.36530175]
[1737169379682,4.4893,222.75,222.66,21.36530175]
[1737169380310,6.052,222.76,222.69,20.0]
[1737169380901,6.052,222.76,222.69,19.0]
[1737169381395,6.052,222.76,222.7,4.4903]
[1737169382010,172.10703326,222.78,222.7,15.7161]
[1737169382381,172.10703326,222.78,222.7,4.4903]
[1737169383416,172.10703326,222.78,222.69,20.0]
[1737169384082,172.10703326,222.78,222.66,21.36530175]
[1737169384083,0.84183208,222.77,222.66,21.36530175]
[1737169384283,7.8747,222.76,222.66,16.66530175]
[1737169384597,0.84207817,222.75,222.62,4.7]
[1737169385216,7.8747,222.7,222.55,4.7]
[1737169385399,7.8747,222.67,222.54,4.72]
[1737169385713,1.5953,222.65,222.54,4.72]
[1737169386012,1.5953,222.65,222.52,4.7]
[1737169386594,1.5953,222.65,222.53,0.67306144]
[1737169386796,1.5953,222.65,222.58,17.03125549]
[1737169386989,7.8747,222.67,222.61,20.0]
[1737169387514,7.8747,222.67,222.6,20.0]
[1737169387719,7.8747,222.67,222.62,24.4919]
[1737169387894,175.01723326,222.78,222.62,24.4919]
[1737169388091,170.52843326,222.78,222.62,24.4919]
[1737169388296,170.52843326,222.78,222.67,0.063]
[1737169388596,170.52843326,222.78,222.68,4.74]
[1737169389715,170.52843326,222.78,222.72,20.0]
[1737169390519,170.02843326,222.78,222.72,20.0]
[1737169390694,170.02843326,222.78,222.73,4.4897]
[1737169390896,170.02843326,222.78,222.73,15.714]
[1737169391095,170.02843326,222.78,222.73,4.4897]
[1737169391728,170.02843326,222.78,222.74,20.0]
[1737169392796,170.02843326,222.78,222.75,4.4893]
[1737169393501,146.30343326,222.78,222.75,4.4893]
[1737169393805,95.02263326,222.78,222.76,20.0]
[1737169394125,44.74673326,222.78,222.76,20.0]
[1737169394417,3.326e-05,222.78,222.76,20.0]
[1737169394617,3.326e-05,222.78,222.77,0.67088474]
[1737169394839,3.326e-05,222.78,222.77,17.70214023]
[1737169395144,3.326e-05,222.78,222.77,4.4889]
[1737169397226,3.326e-05,222.78,222.76,4.7]
[1737169398335,3.326e-05,222.78,222.77,20.0]
[1737169398624,3.326e-05,222.78,222.77,24.4889]
[1737169398828,3.326e-05,222.78,222.77,29.1889]
[1737169400098,3.326e-05,222.78,222.77,29.8599595]
[1737169400636,3.326e-05,222.78,222.77,29.1889]
[1737169401613,3.326e-05,222.78,222.77,29.8599071]
[1737169402125,3.326e-05,222.78,222.77,60.43116259]
[1737169402750,3.326e-05,222.78,222.77,43.3999071]
[1737169403040,3.326e-05,222.78,222.77,60.43116259]
[1737169403416,3.326e-05,222.78,222.77,29.1889]
[1737169404437,3.326e-05,222.78,222.77,4.68]
[1737169405022,3.326e-05,222.78,222.7,15.7159]
[1737169405241,7.7231,222.77,222.71,4.68]
[1737169405733,7.7231,222.77,222.72,4.4899]
[1737169406837,3.326e-05,222.78,222.75,20.0]
[1737169407142,3.326e-05,222.78,222.72,4.4899]
[1737169408139,3.326e-05,222.78,222.72,15.7147]
[1737169408318,3.326e-05,222.78,222.72,16.38625353]
[1737169408517,3.326e-05,222.78,222.75,20.0]
[1737169408936,3.326e-05,222.78,222.72,15.7147]
[1737169409134,3.326e-05,222.78,222.76,4.66]
[1737169409836,3.326e-05,222.78,222.77,4.4889]
[1737169411546,3.326e-05,222.78,222.77,4.5519]
[1737169412241,7.7231,222.82,222.77,4.5519]
[1737169413951,7.7231,222.88,222.83,20.0]
[1737169416245,6.7231,222.88,222.84,4.4875]
[1737169416626,1.5953,222.89,222.84,4.4875]
[1737169417130,2.0324,222.95,222.85,4.7]
[1737169418353,2.0324,222.95,222.86,4.4871]
[1737169419131,7.7231,222.94,222.86,4.4871]
[1737169420127,7.7231,222.94,222.86,15.7049]
[1737169421243,7.7231,222.94,222.86,4.4871]
[1737169423350,0.29919,222.9,222.86,4.4871]
[1737169424952,0.29919,222.9,222.86,15.7049]
[1737169428979,0.29919,222.9,222.86,4.4871]
[1737169430034,0.29919,222.9,222.8,48.42]
[1737169430035,4.78549,222.9,222.8,48.42]
[1737169430237,2.098,222.88,222.71,4.4901]
[1737169430554,2.098,222.84,222.67,0.063]
[1737169430860,15.7077,222.82,222.67,4.723]
[1737169431040,2.098,222.84,222.72,17.03125549]
[1737169431239,2.098,222.84,222.76,20.0]
[1737169431446,7.42713095,222.84,222.67,4.5538]
[1737169431642,7.42713095,222.84,222.74,4.68]
[1737169431841,18.64593095,222.84,222.68,4.68]
[1737169432034,7.42713095,222.84,222.68,4.68]
[1737169432233,2.098,222.84,222.7,20.0]
[1737169432431,2.098,222.84,222.71,4.68]
[1737169432868,2.098,222.84,222.72,4.4899]
[1737169433164,2.098,222.84,222.67,28.99350162]
[1737169433165,0.84158346,222.83,222.67,0.063]
[1737169433457,0.84158346,222.83,222.67,4.5537]
[1737169433663,0.84158346,222.83,222.68,20.0]
[1737169434238,0.84158346,222.83,222.67,0.063]
[1737169434566,8.4693,222.82,222.68,4.68]
[1737169434748,0.84201552,222.81,222.68,4.68]
[1737169435066,4.4883,222.8,222.68,9.1706]
[1737169435365,0.84184962,222.79,222.72,0.063]
[1737169435663,8.4693,222.82,222.72,0.063]
[1737169435871,0.84177691,222.81,222.72,0.063]
[1737169436841,4.4883,222.8,222.72,0.063]
[1737169437158,0.84183679,222.79,222.72,0.063]
[1737169437555,5.33015377,222.8,222.72,0.063]
[1737169438261,5.33015377,222.8,222.7,4.68]
[1737169438262,16.55095377,222.8,222.7,4.68]
[1737169438445,16.55095377,222.8,222.67,0.063]
[1737169438645,2.1687,222.74,222.63,0.063]
[1737169438843,2.1687,222.74,222.54,0.063]
[1737169438844,15.7147,222.72,222.59,4.68]
[1737169439046,0.84237297,222.71,222.59,4.68]
[1737169439256,10.638,222.7,222.54,0.063]
[1737169439453,10.638,222.7,222.52,4.4939]
[1737169439454,20.0,222.63,222.49,0.063]
[1737169439757,0.84275161,222.62,222.49,0.063]
[1737169440636,0.84273865,222.65,222.49,4.5574]
[1737169440861,10.638,222.66,222.49,4.5574]
[1737169441060,10.638,222.66,222.52,20.0]
[1737169441271,10.638,222.66,222.56,20.0]
[1737169441767,10.638,222.66,222.51,17.03125549]
[1737169441951,10.638,222.66,222.54,17.03125549]
[1737169442150,10.638,222.66,222.57,20.0]
[1737169442370,10.638,222.66,222.5,17.03125549]
[1737169442541,10.638,222.66,222.51,4.72]
[1737169442542,15.1292,222.66,222.51,4.72]
[1737169442742,15.1292,222.66,222.54,20.0]
[1737169443750,15.1292,222.66,222.55,4.4933]
[1737169443954,0.8423706,222.65,222.56,4.7]
[1737169444457,10.638,222.66,222.56,4.7]
[1737169445850,10.638,222.66,222.57,4.4929]
[1737169447174,11.48035409,222.66,222.57,4.4929]
[1737169447470,11.48035409,222.66,222.56,4.7]
[1737169447471,15.97155409,222.66,222.56,4.7]
[1737169447660,0.063,222.65,222.56,4.7]
[1737169447863,4.4917,222.63,222.56,4.7]
[1737169448173,0.84249139,222.62,222.56,4.7]
[1737169448673,0.84249139,222.62,222.53,4.4936]
[1737169448859,0.84249139,222.62,222.54,4.68]
[1737169449850,4.4921,222.61,222.51,4.4941]
[1737169450050,0.84260162,222.6,222.52,4.68]
[1737169450454,0.84260162,222.6,222.49,4.5574]
[1737169450657,10.7638,222.59,222.5,4.68]
[1737169450963,0.84278468,222.58,222.5,4.68]
[1737169451756,10.7638,222.59,222.5,4.68]
[1737169452172,10.7638,222.59,222.51,4.4941]
[1737169452975,16.09890968,222.59,222.51,4.68]
[1737169453286,10.7638,222.59,222.51,4.68]
[1737169453774,0.063,222.65,222.51,4.68]
[1737169454075,0.90543392,222.65,222.51,4.68]
[1737169454257,5.39673392,222.65,222.52,4.4939]
[1737169454868,0.90543392,222.65,222.55,20.0]
[1737169455184,0.063,222.65,222.55,20.0]
[1737169456065,0.90530868,222.65,222.56,4.4931]
[1737169456262,0.063,222.65,222.56,4.4931]
[1737169456467,0.063,222.65,222.57,4.68]
[1737169458076,0.063,222.65,222.58,4.4927]
[1737169458262,0.063,222.65,222.61,20.0]
[1737169459381,0.063,222.65,222.62,4.4919]
[1737169461588,0.063,222.65,222.64,4.4915]
[1737169462883,0.063,222.65,222.63,4.68]
[1737169463864,10.8629,222.72,222.63,9.1716]
[1737169464072,10.8629,222.72,222.67,20.0]
[1737169464568,10.8629,222.72,222.66,20.0]
[1737169465771,0.84185787,222.85,222.67,4.4909]
[1737169465772,15.3513,222.8,222.67,4.4909]
[1737169466172,4.4886,222.79,222.67,4.4909]
[1737169466516,5.33047288,222.79,222.67,4.4909]
[1737169466990,15.3512,222.8,222.67,4.4909]
[1737169467368,10.8629,222.8,222.67,15.7182]
[1737169467572,4.4877,222.84,222.7,20.0]
[1737169467775,0.84187142,222.85,222.71,24.4901]
[1737169467971,5.32917142,222.85,222.71,24.4901]
[1737169468177,5.32917142,222.85,222.71,35.7154]
[1737169468663,7.51095686,222.87,222.71,35.7154]
[1737169470173,7.51095686,222.87,222.71,4.4901]
[1737169470381,18.72825686,222.87,222.72,4.64]
[1737169470585,0.063,222.77,222.72,4.64]
[1737169471594,0.063,222.77,222.72,9.1298]
[1737169474069,8.6806,222.76,222.67,4.4909]
[1737169474267,0.063,222.77,222.71,20.0]
[1737169474995,0.063,222.77,222.68,4.62]
[1737169475489,4.552,222.77,222.68,4.7]
[1737169476094,4.4879,222.82,222.68,9.1906]
[1737169476275,0.84191547,222.81,222.68,9.1906]
[1737169476795,10.8629,222.8,222.62,4.7]
[1737169477012,20.0,222.77,222.62,4.7]
[1737169477174,0.84215964,222.76,222.62,4.7]
[1737169478078,4.4893,222.75,222.62,4.7]
[1737169478390,10.8629,222.73,222.61,4.7]
[1737169478592,10.8629,222.73,222.59,52.9523]
[1737169478593,0.84227839,222.72,222.59,48.46]
[1737169479298,0.84227839,222.72,222.59,52.9525]
[1737169479875,0.84227839,222.72,222.59,48.46]
[1737169480090,4.4901,222.71,222.59,52.9525]
[1737169480297,0.84226918,222.72,222.59,52.9525]
[1737169481372,10.8629,222.73,222.59,52.9525]
[1737169481672,11.70498585,222.73,222.59,52.9525]
[1737169482073,10.8629,222.73,222.62,20.03]
[1737169483605,10.8629,222.73,222.63,15.721]
[1737169483902,10.8629,222.73,222.63,4.4917]
[1737169484477,10.8629,222.73,222.63,15.721]
[1737169485171,0.84203601,222.72,222.63,4.4917]
[1737169485382,10.8629,222.73,222.64,4.68]
[1737169485580,10.8629,222.73,222.65,4.4913]
[1737169487408,0.84202383,222.72,222.62,0.03]
[1737169487708,4.4901,222.71,222.62,0.03]
[1737169487883,0.84239123,222.7,222.62,0.03]
[1737169488910,0.84239123,222.7,222.54,4.5235]
[1737169488911,15.7168,222.69,222.58,4.66]
[1737169489206,0.84247425,222.68,222.58,4.66]
[1737169489407,10.6094,222.67,222.56,4.66]
[1737169489589,0.84252624,222.66,222.56,4.66]
[1737169490382,0.84252624,222.66,222.54,0.03]
[1737169490607,2.0922,222.65,222.54,0.03]
[1737169490793,0.84267742,222.64,222.54,0.03]
[1737169491100,4.4917,222.63,222.54,0.03]
[1737169491303,0.84262244,222.62,222.54,0.03]
[1737169492698,4.4921,222.61,222.54,0.03]
[1737169492899,0.84261725,222.6,222.54,0.03]
[1737169493613,5.33511725,222.6,222.54,0.03]
[1737169494108,5.33422023,222.64,222.54,0.03]
[1737169494782,0.84262023,222.64,222.54,0.03]
[1737169494988,2.0922,222.65,222.56,20.0]
[1737169495698,2.0922,222.65,222.57,4.4929]
[1737169496809,8.5172,222.67,222.57,4.4929]
[1737169497417,9.35951414,222.67,222.57,4.4929]
[1737169499894,13.85051414,222.67,222.57,4.4929]
[1737169501622,8.5172,222.67,222.6,20.0]
[1737169501801,2.0922,222.71,222.6,20.0]
[1737169502992,2.0922,222.71,222.61,4.4921]
[1737169503199,2.0922,222.71,222.61,35.7225]
[1737169506703,2.1552,222.71,222.61,35.7225]
[1737169509910,0.84211198,222.7,222.61,4.4921]
[1737169510113,2.99738946,222.71,222.62,4.56]
[1737169510631,2.99738946,222.71,222.63,4.4917]
[1737169511131,2.1552,222.71,222.63,4.4917]
[1737169511334,6.6453,222.71,222.63,4.4917]
[1737169511499,0.84218654,222.7,222.62,4.56]
[1737169511705,2.99743419,222.71,222.62,9.0518]
[1737169512113,2.1552,222.71,222.62,9.0518]
[1737169512915,2.1552,222.71,222.62,20.2816]
[1737169514308,0.84205195,222.7,222.6,4.4921]
[1737169514514,0.84205195,222.7,222.58,4.4926]
[1737169514724,4.4905,222.69,222.58,4.54]
[1737169515034,4.4905,222.69,222.57,0.03]
[1737169515035,0.84242288,222.68,222.57,4.57]
[1737169515408,10.6902,222.67,222.55,4.54]
[1737169515718,10.6902,222.65,222.54,0.03]
[1737169515911,0.84272918,222.64,222.54,0.03]
[1737169516110,20.0,222.6,222.38,17.92146089]
[1737169516311,10.6902,222.57,222.38,6.67966089]
[1737169516505,10.6902,222.55,222.38,20.0]
[1737169516708,10.6902,222.52,222.37,4.56]
[1737169516909,0.84317786,222.51,222.37,4.56]
[1737169517105,0.84317786,222.51,222.35,48.46]
[1737169517347,20.0,222.46,222.35,48.46]
[1737169517516,10.0982,222.44,222.34,0.03]
[1737169517716,0.84350098,222.43,222.34,0.03]
[1737169517923,0.84350098,222.43,222.31,0.03]
[1737169518218,0.84350098,222.43,222.19,6.67966089]
[1737169518219,20.0,222.39,222.28,4.58]
[1737169518422,0.84365303,222.38,222.28,4.58]
[1737169518627,10.0982,222.37,222.13,17.03125549]
[1737169518812,4.4974,222.35,222.21,4.58]
[1737169519139,4.4972,222.36,222.24,4.4994]
[1737169519442,5.34073907,222.36,222.21,4.58]
[1737169519940,16.58373907,222.36,222.23,4.58]
[1737169520336,16.58373907,222.36,222.1,11.256]
[1737169520337,20.0,222.33,222.11,4.5022]
[1737169520538,0.84393016,222.32,222.14,4.58]
[1737169520723,0.84393016,222.32,222.11,4.5022]
[1737169521037,4.4982,222.31,222.12,4.58]
[1737169521250,0.8440536,222.3,222.12,4.58]
[1737169521929,20.0,222.28,222.12,4.58]
[1737169522114,0.8441032,222.27,222.12,4.58]
[1737169522321,0.8441032,222.27,222.08,0.03]
[1737169522625,20.0,222.23,222.08,0.03]
[1737169522846,10.0982,222.26,222.08,0.03]
[1737169522847,15.7508,222.21,222.08,0.03]
[1737169523038,0.84444074,222.2,222.08,0.03]
[1737169523825,4.4998,222.23,222.1,20.0]
[1737169524131,5.34385044,222.23,222.1,20.0]
[1737169524819,10.0982,222.26,222.11,4.5022]
[1737169525026,10.0982,222.26,222.12,17.03125549]
[1737169525337,10.0982,222.26,222.16,20.0]
[1737169525645,10.0982,222.26,222.13,17.03125549]
[1737169525646,2.0622,222.26,222.18,20.0]
[1737169526153,8.036,222.33,222.22,20.0]
[1737169526356,12.5339,222.33,222.23,4.6]
[1737169526580,0.84366896,222.32,222.23,4.6]
[1737169526934,5.34176896,222.32,222.23,4.6]
[1737169527130,5.34176896,222.32,222.21,4.6]
[1737169528041,16.58676896,222.32,222.21,4.6]
[1737169529652,16.58676896,222.32,222.11,4.5021]
[1737169529961,16.58676896,222.32,222.18,4.58]
[1737169530344,20.0,222.29,222.18,4.58]
[1737169530554,0.84403756,222.28,222.18,4.58]
[1737169530945,4.499,222.27,222.18,4.58]
[1737169531143,0.84400053,222.26,222.18,4.58]
[1737169531562,4.499,222.27,222.18,4.58]
[1737169532066,0.84385997,222.26,222.13,4.58]
[1737169532366,8.036,222.25,222.12,4.58]
[1737169532561,0.84419605,222.24,222.12,4.58]
[1737169532758,8.036,222.25,222.05,4.5033]
[1737169532967,8.036,222.25,222.09,4.6]
[1737169532968,18.32230976,222.24,222.09,4.6]
[1737169533460,2.0622,222.16,222.03,0.063]
[1737169533763,0.51140976,222.15,222.03,0.063]
[1737169535052,15.7557,222.14,222.03,0.063]
[1737169535270,0.51140976,222.13,222.03,0.063]
[1737169535460,8.0553,222.1,222.03,0.063]
[1737169535674,0.51140976,222.09,222.03,0.063]
[1737169535971,0.51140976,222.09,221.99,10.0]
[1737169537350,4.5028,222.08,221.99,10.0]
[1737169537668,0.51140976,222.07,221.99,10.0]
[1737169537971,6.5635,222.16,222.01,17.03125549]
[1737169538176,0.51140976,222.15,222.0,4.5045]
[1737169539057,17.8166,222.16,222.01,4.64]
[1737169539440,8.0553,222.2,222.03,20.0]
[1737169539646,8.0553,222.2,222.02,15.7642]
[1737169539869,8.0553,222.2,222.06,20.0]
[1737169540045,8.0553,222.2,222.08,20.0]
[1737169540566,12.5557,222.2,222.08,20.0]
[1737169540750,8.0553,222.2,222.08,20.0]
[1737169541666,8.0553,222.2,222.09,4.5026]
[1737169542171,12.5557,222.2,222.09,4.5026]
[1737169542766,12.5557,222.2,222.1,4.66]
[1737169543169,12.5557,222.2,222.1,9.1623]
[1737169543671,8.0553,222.2,222.1,9.1623]
[1737169545153,12.5558,222.2,222.01,11.2605]
[1737169545356,12.5558,222.2,222.02,9.144]
[1737169545664,23.8069,222.2,222.02,4.504]
[1737169545875,23.8069,222.2,222.03,4.64]
[1737169546673,23.8069,222.2,222.03,9.1438]
[1737169548467,23.8069,222.2,222.04,4.64]
[1737169548674,46.3091,222.2,222.04,4.64]
[1737169548883,1.9828,222.16,222.04,4.64]
[1737169549053,1.9828,222.16,221.99,58.58]
[1737169549255,1.9828,222.16,222.0,4.64]
[1737169549674,1.9828,222.16,221.99,63.0846]
[1737169549972,21.9828,222.16,222.0,4.62]
[1737169550169,21.9828,222.16,221.99,58.58]
[1737169550551,15.755,222.15,221.99,58.58]
[1737169551052,8.5863,222.14,221.99,58.58]
[1737169551248,26.600777,222.14,221.99,63.0846]
[1737169551448,8.5863,222.14,221.99,74.3463]
[1737169552573,15.7564,222.13,221.99,58.58]
[1737169554982,20.0,222.1,221.99,58.58]
[1737169555178,15.7592,222.09,221.99,58.58]
[1737169555386,15.7592,222.09,221.99,58.61]
[1737169556061,10.6182,222.08,221.99,10.03]
[1737169556857,10.6182,222.08,221.95,0.03]
[1737169557062,29.2307,222.07,221.95,0.03]
[1737169557283,20.0,222.04,221.95,0.03]
[1737169558075,15.7635,222.03,221.95,0.03]
[1737169558277,15.7635,222.03,221.88,4.6]
[1737169559178,15.765,222.01,221.88,4.6]
[1737169559684,15.765,222.01,221.86,0.03]
[1737169559685,20.0,221.98,221.86,0.03]
[1737169559894,8.4716,221.96,221.8,0.063]
[1737169560057,20.0,221.93,221.8,0.063]
[1737169560264,22.1466,221.92,221.8,0.063]
[1737169560687,28.4716,221.91,221.79,4.6]
[1737169560976,28.4716,221.91,221.77,48.6]
[1737169561376,20.0,221.87,221.77,48.6]
[1737169561585,2.1466,221.86,221.76,0.03]
[1737169561783,8.4716,221.82,221.71,0.063]
[1737169561974,2.1466,221.81,221.71,0.063]
[1737169562283,2.1466,221.81,221.65,4.6]
[1737169562284,20.0,221.79,221.65,4.6]
[1737169562758,2.0682,221.74,221.51,17.03125549]
[1737169563089,20.0,221.7,221.52,9.1342]
[1737169563262,15.7878,221.69,221.52,4.62]
[1737169563789,4.5104,221.71,221.55,17.03125549]
[1737169564159,4.5104,221.71,221.56,4.62]
[1737169564359,20.0,221.69,221.56,4.62]
[1737169564563,20.0,221.69,221.54,4.62]
[1737169564979,20.0,221.68,221.54,4.62]
[1737169565284,15.7899,221.66,221.54,4.62]
[1737169566079,15.7899,221.66,221.5,48.6]
[1737169566281,15.7899,221.66,221.48,0.063]
[1737169566282,20.0,221.59,221.48,0.063]
[1737169566494,33.47,221.58,221.36,18.052791]
[1737169566798,20.0,221.54,221.36,18.052791]
[1737169566976,20.0,221.54,221.35,9.1576]
[1737169567157,20.0,221.54,221.35,4.64]
[1737169567360,15.7991,221.53,221.35,4.64]
[1737169567570,15.7991,221.53,221.35,9.1576]
[1737169567792,4.5137,221.55,221.37,27.96749936]
[1737169567965,4.5103,221.71,221.54,20.0]
[1737169568169,4.5103,221.71,221.56,20.0]
[1737169568385,4.5103,221.71,221.57,4.68]
[1737169568577,10.7865,221.72,221.58,20.0]
[1737169568990,10.7865,221.72,221.62,47.96749936]
[1737169569293,10.7865,221.72,221.58,20.0]
[1737169569294,10.7865,221.72,221.58,27.96749936]
[1737169569596,15.2967,221.72,221.59,4.5128]
[1737169569784,15.2967,221.72,221.57,4.68]
[1737169570174,15.2967,221.72,221.49,11.2867]
[1737169570175,20.0,221.69,221.54,4.5137]
[1737169570491,20.0,221.69,221.52,29.2142]
[1737169571569,4.511,221.68,221.52,29.2142]
[1737169574290,15.7885,221.68,221.53,4.7]
[1737169574499,4.511,221.68,221.53,4.7]
[1737169574988,4.511,221.68,221.54,4.7]
[1737169575796,15.2967,221.72,221.54,4.7]
[1737169575974,15.2967,221.72,221.55,20.0]
[1737169576169,10.7865,221.72,221.57,20.0]
[1737169576396,10.7865,221.72,221.59,20.0]
[1737169576697,10.7865,221.72,221.61,20.0]
[1737169576885,10.7865,221.72,221.63,20.0]
[1737169577602,10.2928,221.84,221.71,20.0]
[1737169577771,10.2928,221.84,221.72,4.7]
[1737169577965,10.2928,221.84,221.69,4.7]
[1737169578495,4.5079,221.83,221.7,4.5105]
[1737169578695,15.7777,221.83,221.69,4.7]
[1737169579271,15.7777,221.83,221.68,4.5109]
[1737169579498,20.0,221.8,221.66,4.7]
[1737169579669,15.7777,221.83,221.66,4.7]
[1737169579670,4.5079,221.83,221.66,4.7]
[1737169579870,0.063,221.68,221.66,24.7]
[1737169580295,10.2928,221.84,221.66,24.7]
[1737169580573,10.2928,221.84,221.7,20.0]
[1737169580773,14.8006,221.84,221.7,20.0]
[1737169581792,10.2928,221.84,221.7,20.0]
[1737169582002,15.7728,221.9,221.7,20.0]
[1737169582176,20.0,221.87,221.7,20.0]
[1737169582498,15.7756,221.86,221.67,15.7892]
[1737169582708,4.5073,221.86,221.67,15.7892]
[1737169582878,4.507,221.88,221.7,20.0]
[1737169583074,10.2928,221.91,221.72,20.0]
[1737169583305,20.0,221.88,221.72,20.0]
[1737169584084,4.5071,221.87,221.73,4.5099]
[1737169585199,10.2928,221.91,221.73,4.5099]
[1737169585375,4.5065,221.9,221.73,15.7848]
[1737169585582,15.7728,221.9,221.73,4.5099]
[1737169586193,20.0,221.87,221.74,4.68]
[1737169586573,20.0,221.87,221.69,4.68]
[1737169586787,15.7728,221.9,221.69,24.68]
[1737169587580,51.7754,221.9,221.69,4.68]
[1737169587786,33.47,221.86,221.66,4.68]
[1737169587991,33.47,221.86,221.61,11.2808]
[1737169587992,20.0,221.83,221.67,4.68]
[1737169588194,10.2928,221.89,221.67,4.68]
[1737169588594,20.0,221.85,221.67,4.68]